Workbook

Sheet Dual Meet
A1: TEAMS ENTERED | D1: SITE: | E1: TRA | L1: COURSE PAR | M1: 36
A2: Treynor | D2: DATE: | E2: 2016-04-18 | L2: COURSE RATING | M2: 35.2
A3: Griswold | D3: WEATHER: | E3: 65 degrees wet and breezy
A5: GIRLS MEDALIST: | B5: Aly Anderson-42 | H5: RUNNER-UP | I5: Kayla Chapman-45 | P5: HOLE RANKINGS FOR TIE-BREAKER
A7: =+$A$2&$A$81&$A$83 -> Treynor | B7: Varsity Girls | O7: =+A7 -> Treynor
B8: 1 | C8: 2 | D8: 3 | E8: 4 | F8: 5 | G8: 6 | H8: 7 | I8: 8 | J8: 9 | K8: TOTAL | L8: PLACE | M8: + / - | P8: 1 | Q8: 2 | R8: 3 | S8: 4 | T8: 5 | U8: 6 | V8: 7 | W8: 8 | X8: 9
A9: Aly Anderson | B9: 6 | C9: 4 | D9: 5 | E9: 5 | F9: 5 | G9: 3 | H9: 4 | I9: 5 | J9: 5 | K9: =SUM(B9:J9) -> 42 | L9: =RANK(K9,($K$9:$K$14,$K$19:$K$24),1) -> 1 | M9: =+K9-$M$1 -> 6 | O9: =+A9 -> Aly Anderson | P9: =RANK(B9,(B$9:B$14,B$19:B$24),1) -> 2 | Q9: =RANK(C9,(C$9:C$14,C$19:C$24),1) -> 1 | R9: =RANK(D9,(D$9:D$14,D$19:D$24),1) -> 1 | S9: =RANK(E9,(E$9:E$14,E$19:E$24),1) -> 2 | T9: =RANK(F9,(F$9:F$14,F$19:F$24),1) -> 1 | U9: =RANK(G9,(G$9:G$14,G$19:G$24),1) -> 1 | V9: =RANK(H9,(H$9:H$14,H$19:H$24),1) -> 1 | W9: =RANK(I9,(I$9:I$14,I$19:I$24),1) -> 2 | X9: =RANK(J9,(J$9:J$14,J$19:J$24),1) -> 2
A10: Madelyn Deitchler | B10: 6 | C10: 5 | D10: 7 | E10: 4 | F10: 6 | G10: 3 | H10: 7 | I10: 5 | J10: 5 | K10: 48 | L10: =RANK(K10,($K$9:$K$14,$K$19:$K$24),1) -> 3 | M10: 12 | O10: Madelyn Deitchler | P10: =RANK(B10,(B$9:B$14,B$19:B$24),1) -> 2 | Q10: =RANK(C10,(C$9:C$14,C$19:C$24),1) -> 4 | R10: =RANK(D10,(D$9:D$14,D$19:D$24),1) -> 7 | S10: =RANK(E10,(E$9:E$14,E$19:E$24),1) -> 1 | T10: =RANK(F10,(F$9:F$14,F$19:F$24),1) -> 2 | U10: =RANK(G10,(G$9:G$14,G$19:G$24),1) -> 1 | V10: =RANK(H10,(H$9:H$14,H$19:H$24),1) -> 9 | W10: =RANK(I10,(I$9:I$14,I$19:I$24),1) -> 2 | X10: =RANK(J10,(J$9:J$14,J$19:J$24),1) -> 2
A11: McKenna Waffle | B11: 7 | C11: 4 | D11: 6 | E11: 5 | F11: 8 | G11: 4 | H11: 6 | I11: 6 | J11: 7 | K11: 53 | L11: =RANK(K11,($K$9:$K$14,$K$19:$K$24),1) -> 5 | M11: 17 | O11: McKenna Waffle | P11: =RANK(B11,(B$9:B$14,B$19:B$24),1) -> 6 | Q11: =RANK(C11,(C$9:C$14,C$19:C$24),1) -> 1 | R11: =RANK(D11,(D$9:D$14,D$19:D$24),1) -> 3 | S11: =RANK(E11,(E$9:E$14,E$19:E$24),1) -> 2 | T11: =RANK(F11,(F$9:F$14,F$19:F$24),1) -> 5 | U11: =RANK(G11,(G$9:G$14,G$19:G$24),1) -> 4 | V11: =RANK(H11,(H$9:H$14,H$19:H$24),1) -> 6 | W11: =RANK(I11,(I$9:I$14,I$19:I$24),1) -> 6 | X11: =RANK(J11,(J$9:J$14,J$19:J$24),1) -> 6
A12: Kayla Chapman | B12: 4 | C12: 5 | D12: 6 | E12: 5 | F12: 6 | G12: 4 | H12: 4 | I12: 5 | J12: 6 | K12: 45 | L12: =RANK(K12,($K$9:$K$14,$K$19:$K$24),1) -> 2 | M12: 9 | O12: Kayla Chapman | P12: =RANK(B12,(B$9:B$14,B$19:B$24),1) -> 1 | Q12: =RANK(C12,(C$9:C$14,C$19:C$24),1) -> 4 | R12: =RANK(D12,(D$9:D$14,D$19:D$24),1) -> 3 | S12: =RANK(E12,(E$9:E$14,E$19:E$24),1) -> 2 | T12: =RANK(F12,(F$9:F$14,F$19:F$24),1) -> 2 | U12: =RANK(G12,(G$9:G$14,G$19:G$24),1) -> 4 | V12: =RANK(H12,(H$9:H$14,H$19:H$24),1) -> 1 | W12: =RANK(I12,(I$9:I$14,I$19:I$24),1) -> 2 | X12: =RANK(J12,(J$9:J$14,J$19:J$24),1) -> 5
A13: Randi Robinson | B13: 7 | C13: 6 | D13: 6 | E13: 5 | F13: 6 | G13: 4 | H13: 5 | I13: 9 | J13: 5 | K13: 53 | L13: =RANK(K13,($K$9:$K$14,$K$19:$K$24),1) -> 5 | M13: 17 | O13: Randi Robinson | P13: =RANK(B13,(B$9:B$14,B$19:B$24),1) -> 6 | Q13: =RANK(C13,(C$9:C$14,C$19:C$24),1) -> 6 | R13: =RANK(D13,(D$9:D$14,D$19:D$24),1) -> 3 | S13: =RANK(E13,(E$9:E$14,E$19:E$24),1) -> 2 | T13: =RANK(F13,(F$9:F$14,F$19:F$24),1) -> 2 | U13: =RANK(G13,(G$9:G$14,G$19:G$24),1) -> 4 | V13: =RANK(H13,(H$9:H$14,H$19:H$24),1) -> 3 | W13: =RANK(I13,(I$9:I$14,I$19:I$24),1) -> 11 | X13: =RANK(J13,(J$9:J$14,J$19:J$24),1) -> 2
A14: Seirra Maguire | B14: 6 | C14: 6 | D14: 10 | E14: 6 | F14: 8 | G14: 5 | H14: 6 | I14: 5 | J14: 7 | K14: 59 | L14: =RANK(K14,($K$9:$K$14,$K$19:$K$24),1) -> 7 | M14: 23 | O14: Seirra Maguire | P14: =RANK(B14,(B$9:B$14,B$19:B$24),1) -> 2 | Q14: =RANK(C14,(C$9:C$14,C$19:C$24),1) -> 6 | R14: =RANK(D14,(D$9:D$14,D$19:D$24),1) -> 10 | S14: =RANK(E14,(E$9:E$14,E$19:E$24),1) -> 9 | T14: =RANK(F14,(F$9:F$14,F$19:F$24),1) -> 5 | U14: =RANK(G14,(G$9:G$14,G$19:G$24),1) -> 7 | V14: =RANK(H14,(H$9:H$14,H$19:H$24),1) -> 6 | W14: =RANK(I14,(I$9:I$14,I$19:I$24),1) -> 2 | X14: =RANK(J14,(J$9:J$14,J$19:J$24),1) -> 6
J15: TEAM GROSS | K15: =SUM(K9:K14) -> 300 | M15: =SUM(M9:M14) -> 84
J16: TEAM NET | K16: =SMALL(K9:K14,1)+SMALL(K9:K14,2)+SMALL(K9:K14,3)+SMALL(K9:K14,4) -> 188 | L16: =RANK(K16,($K$16,$K$26),1) -> 1 | M16: =SMALL(M9:M14,1)+SMALL(M9:M14,2)+SMALL(M9:M14,3)+SMALL(M9:M14,4) -> 44
A17: =+A$3&$A$81&$A$83 -> Griswold | B17: Varsity Girls | O17: =+A17 -> Griswold
B18: 1 | C18: 2 | D18: 3 | E18: 4 | F18: 5 | G18: 6 | H18: 7 | I18: 8 | J18: 9 | K18: TOTAL | L18: PLACE | M18: + / - | P18: 1 | Q18: 2 | R18: 3 | S18: 4 | T18: 5 | U18: 6 | V18: 7 | W18: 8 | X18: 9
A19: Mateya Peters | B19: 7 | C19: 4 | D19: 6 | E19: 5 | F19: 10 | G19: 5 | H19: 5 | I19: 4 | J19: 4 | K19: =SUM(B19:J19) -> 50 | L19: =RANK(K19,($K$9:$K$14,$K$19:$K$24),1) -> 4 | M19: =+K19-$M$1 -> 14 | O19: =+A19 -> Mateya Peters | P19: =RANK(B19,(B$9:B$14,B$19:B$24),1) -> 6 | Q19: =RANK(C19,(C$9:C$14,C$19:C$24),1) -> 1 | R19: =RANK(D19,(D$9:D$14,D$19:D$24),1) -> 3 | S19: =RANK(E19,(E$9:E$14,E$19:E$24),1) -> 2 | T19: =RANK(F19,(F$9:F$14,F$19:F$24),1) -> 10 | U19: =RANK(G19,(G$9:G$14,G$19:G$24),1) -> 7 | V19: =RANK(H19,(H$9:H$14,H$19:H$24),1) -> 3 | W19: =RANK(I19,(I$9:I$14,I$19:I$24),1) -> 1 | X19: =RANK(J19,(J$9:J$14,J$19:J$24),1) -> 1
A20: Shelby Keiser | B20: 8 | C20: 7 | D20: 5 | E20: 7 | F20: 10 | G20: 3 | H20: 5 | I20: 8 | J20: 9 | K20: 62 | L20: =RANK(K20,($K$9:$K$14,$K$19:$K$24),1) -> 8 | M20: 26 | O20: Shelby Keiser | P20: =RANK(B20,(B$9:B$14,B$19:B$24),1) -> 9 | Q20: =RANK(C20,(C$9:C$14,C$19:C$24),1) -> 10 | R20: =RANK(D20,(D$9:D$14,D$19:D$24),1) -> 1 | S20: =RANK(E20,(E$9:E$14,E$19:E$24),1) -> 12 | T20: =RANK(F20,(F$9:F$14,F$19:F$24),1) -> 10 | U20: =RANK(G20,(G$9:G$14,G$19:G$24),1) -> 1 | V20: =RANK(H20,(H$9:H$14,H$19:H$24),1) -> 3 | W20: =RANK(I20,(I$9:I$14,I$19:I$24),1) -> 9 | X20: =RANK(J20,(J$9:J$14,J$19:J$24),1) -> 10
A21: Bryanna Carlisle | B21: 6 | C21: 6 | D21: 11 | E21: 5 | F21: 8 | G21: 10 | H21: 9 | I21: 8 | J21: 10 | K21: 73 | L21: =RANK(K21,($K$9:$K$14,$K$19:$K$24),1) -> 12 | M21: 37 | O21: Bryanna Carlisle | P21: =RANK(B21,(B$9:B$14,B$19:B$24),1) -> 2 | Q21: =RANK(C21,(C$9:C$14,C$19:C$24),1) -> 6 | R21: =RANK(D21,(D$9:D$14,D$19:D$24),1) -> 12 | S21: =RANK(E21,(E$9:E$14,E$19:E$24),1) -> 2 | T21: =RANK(F21,(F$9:F$14,F$19:F$24),1) -> 5 | U21: =RANK(G21,(G$9:G$14,G$19:G$24),1) -> 12 | V21: =RANK(H21,(H$9:H$14,H$19:H$24),1) -> 12 | W21: =RANK(I21,(I$9:I$14,I$19:I$24),1) -> 9 | X21: =RANK(J21,(J$9:J$14,J$19:J$24),1) -> 12
A22: Karley Keiser | B22: 8 | C22: 7 | D22: 8 | E22: 5 | F22: 8 | G22: 6 | H22: 7 | I22: 7 | J22: 8 | K22: 64 | L22: =RANK(K22,($K$9:$K$14,$K$19:$K$24),1) -> 9 | M22: 28 | O22: Karley Keiser | P22: =RANK(B22,(B$9:B$14,B$19:B$24),1) -> 9 | Q22: =RANK(C22,(C$9:C$14,C$19:C$24),1) -> 10 | R22: =RANK(D22,(D$9:D$14,D$19:D$24),1) -> 9 | S22: =RANK(E22,(E$9:E$14,E$19:E$24),1) -> 2 | T22: =RANK(F22,(F$9:F$14,F$19:F$24),1) -> 5 | U22: =RANK(G22,(G$9:G$14,G$19:G$24),1) -> 11 | V22: =RANK(H22,(H$9:H$14,H$19:H$24),1) -> 9 | W22: =RANK(I22,(I$9:I$14,I$19:I$24),1) -> 8 | X22: =RANK(J22,(J$9:J$14,J$19:J$24),1) -> 9
A23: Reagan Oakleaf | B23: 9 | C23: 7 | D23: 10 | E23: 6 | F23: 9 | G23: 5 | H23: 6 | I23: 10 | J23: 7 | K23: 69 | L23: =RANK(K23,($K$9:$K$14,$K$19:$K$24),1) -> 11 | M23: 33 | O23: Reagan Oakleaf | P23: =RANK(B23,(B$9:B$14,B$19:B$24),1) -> 11 | Q23: =RANK(C23,(C$9:C$14,C$19:C$24),1) -> 10 | R23: =RANK(D23,(D$9:D$14,D$19:D$24),1) -> 10 | S23: =RANK(E23,(E$9:E$14,E$19:E$24),1) -> 9 | T23: =RANK(F23,(F$9:F$14,F$19:F$24),1) -> 9 | U23: =RANK(G23,(G$9:G$14,G$19:G$24),1) -> 7 | V23: =RANK(H23,(H$9:H$14,H$19:H$24),1) -> 6 | W23: =RANK(I23,(I$9:I$14,I$19:I$24),1) -> 12 | X23: =RANK(J23,(J$9:J$14,J$19:J$24),1) -> 6
A24: Kylie Dickinson | B24: 12 | C24: 6 | D24: 7 | E24: 6 | F24: 10 | G24: 5 | H24: 7 | I24: 6 | J24: 9 | K24: 68 | L24: =RANK(K24,($K$9:$K$14,$K$19:$K$24),1) -> 10 | M24: 32 | O24: Kylie Dickinson | P24: =RANK(B24,(B$9:B$14,B$19:B$24),1) -> 12 | Q24: =RANK(C24,(C$9:C$14,C$19:C$24),1) -> 6 | R24: =RANK(D24,(D$9:D$14,D$19:D$24),1) -> 7 | S24: =RANK(E24,(E$9:E$14,E$19:E$24),1) -> 9 | T24: =RANK(F24,(F$9:F$14,F$19:F$24),1) -> 10 | U24: =RANK(G24,(G$9:G$14,G$19:G$24),1) -> 7 | V24: =RANK(H24,(H$9:H$14,H$19:H$24),1) -> 9 | W24: =RANK(I24,(I$9:I$14,I$19:I$24),1) -> 6 | X24: =RANK(J24,(J$9:J$14,J$19:J$24),1) -> 10
J25: TEAM GROSS | K25: =SUM(K19:K24) -> 386 | M25: =SUM(M19:M24) -> 170
J26: TEAM NET | K26: =SMALL(K19:K24,1)+SMALL(K19:K24,2)+SMALL(K19:K24,3)+SMALL(K19:K24,4) -> 244 | L26: =RANK(K26,($K$16,$K$26),1) -> 2 | M26: =SMALL(M19:M24,1)+SMALL(M19:M24,2)+SMALL(M19:M24,3)+SMALL(M19:M24,4) -> 100
A28: GIRLS MEDALIST: | H28: RUNNER UP
A30: =+$A$2&$A$82&$A$83 -> Treynor | B30: JV Girls | O30: =+A30 -> Treynor
B31: 1 | C31: 2 | D31: 3 | E31: 4 | F31: 5 | G31: 6 | H31: 7 | I31: 8 | J31: 9 | K31: TOTAL | L31: PLACE | M31: + / - | P31: 1 | Q31: 2 | R31: 3 | S31: 4 | T31: 5 | U31: 6 | V31: 7 | W31: 8 | X31: 9
A32: Abby Tiarks | B32: 8 | C32: 5 | D32: 6 | E32: 5 | F32: 6 | G32: 4 | H32: 6 | I32: 5 | J32: 5 | K32: =SUM(B32:J32) -> 50 | L32: =RANK(K32,($K$31:$K$37,$K$41:$K$47),1) -> 7 | M32: =+K32-$M$1 -> 14 | O32: =+A32 -> Abby Tiarks | P32: =RANK(B32,(B$32:B$37,B$42:B$47),1) -> 2 | Q32: =RANK(C32,(C$32:C$37,C$42:C$47),1) -> 2 | R32: =RANK(D32,(D$32:D$37,D$42:D$47),1) -> 1 | S32: =RANK(E32,(E$32:E$37,E$42:E$47),1) -> 1 | T32: =RANK(F32,(F$32:F$37,F$42:F$47),1) -> 1 | U32: =RANK(G32,(G$32:G$37,G$42:G$47),1) -> 1 | V32: =RANK(H32,(H$32:H$37,H$42:H$47),1) -> 2 | W32: =RANK(I32,(I$32:I$37,I$42:I$47),1) -> 1 | X32: =RANK(J32,(J$32:J$37,J$42:J$47),1) -> 1
A33: Rachele Mejstrik | B33: 7 | C33: 4 | D33: 7 | E33: 9 | F33: 10 | G33: 5 | H33: 5 | I33: 7 | J33: 9 | K33: 63 | L33: =RANK(K33,($K$31:$K$37,$K$41:$K$47),1) -> 8 | M33: 27 | O33: Rachele Mejstrik | P33: =RANK(B33,(B$32:B$37,B$42:B$47),1) -> 1 | Q33: =RANK(C33,(C$32:C$37,C$42:C$47),1) -> 1 | R33: =RANK(D33,(D$32:D$37,D$42:D$47),1) -> 2 | S33: =RANK(E33,(E$32:E$37,E$42:E$47),1) -> 3 | T33: =RANK(F33,(F$32:F$37,F$42:F$47),1) -> 3 | U33: =RANK(G33,(G$32:G$37,G$42:G$47),1) -> 2 | V33: =RANK(H33,(H$32:H$37,H$42:H$47),1) -> 1 | W33: =RANK(I33,(I$32:I$37,I$42:I$47),1) -> 2 | X33: =RANK(J33,(J$32:J$37,J$42:J$47),1) -> 2
A34: Reagan Darran | B34: 10 | C34: 9 | D34: 8 | E34: 7 | F34: 9 | G34: 8 | H34: 8 | I34: 8 | J34: 9 | K34: 76 | L34: =RANK(K34,($K$31:$K$37,$K$41:$K$47),1) -> 9 | M34: 40 | O34: Reagan Darran | P34: =RANK(B34,(B$32:B$37,B$42:B$47),1) -> 3 | Q34: =RANK(C34,(C$32:C$37,C$42:C$47),1) -> 3 | R34: =RANK(D34,(D$32:D$37,D$42:D$47),1) -> 3 | S34: =RANK(E34,(E$32:E$37,E$42:E$47),1) -> 2 | T34: =RANK(F34,(F$32:F$37,F$42:F$47),1) -> 2 | U34: =RANK(G34,(G$32:G$37,G$42:G$47),1) -> 3 | V34: =RANK(H34,(H$32:H$37,H$42:H$47),1) -> 3 | W34: =RANK(I34,(I$32:I$37,I$42:I$47),1) -> 3 | X34: =RANK(J34,(J$32:J$37,J$42:J$47),1) -> 2
A35: NONE | B35: 10 | C35: 10 | D35: 10 | E35: 10 | F35: 10 | G35: 10 | H35: 10 | I35: 10 | J35: 10 | K35: 90 | L35: =RANK(K35,($K$31:$K$37,$K$41:$K$47),1) -> 10 | M35: 54 | O35: NONE | P35: =RANK(B35,(B$32:B$37,B$42:B$47),1) -> 3 | Q35: =RANK(C35,(C$32:C$37,C$42:C$47),1) -> 4 | R35: =RANK(D35,(D$32:D$37,D$42:D$47),1) -> 4 | S35: =RANK(E35,(E$32:E$37,E$42:E$47),1) -> 4 | T35: =RANK(F35,(F$32:F$37,F$42:F$47),1) -> 3 | U35: =RANK(G35,(G$32:G$37,G$42:G$47),1) -> 4 | V35: =RANK(H35,(H$32:H$37,H$42:H$47),1) -> 4 | W35: =RANK(I35,(I$32:I$37,I$42:I$47),1) -> 4 | X35: =RANK(J35,(J$32:J$37,J$42:J$47),1) -> 4
A36: NONE | B36: 10 | C36: 10 | D36: 10 | E36: 10 | F36: 10 | G36: 10 | H36: 10 | I36: 10 | J36: 10 | K36: 90 | L36: =RANK(K36,($K$31:$K$37,$K$41:$K$47),1) -> 10 | M36: 54 | O36: NONE | P36: =RANK(B36,(B$32:B$37,B$42:B$47),1) -> 3 | Q36: =RANK(C36,(C$32:C$37,C$42:C$47),1) -> 4 | R36: =RANK(D36,(D$32:D$37,D$42:D$47),1) -> 4 | S36: =RANK(E36,(E$32:E$37,E$42:E$47),1) -> 4 | T36: =RANK(F36,(F$32:F$37,F$42:F$47),1) -> 3 | U36: =RANK(G36,(G$32:G$37,G$42:G$47),1) -> 4 | V36: =RANK(H36,(H$32:H$37,H$42:H$47),1) -> 4 | W36: =RANK(I36,(I$32:I$37,I$42:I$47),1) -> 4 | X36: =RANK(J36,(J$32:J$37,J$42:J$47),1) -> 4
A37: NONE | B37: 10 | C37: 10 | D37: 10 | E37: 10 | F37: 10 | G37: 10 | H37: 10 | I37: 10 | J37: 10 | K37: 90 | L37: =RANK(K37,($K$31:$K$37,$K$41:$K$47),1) -> 10 | M37: 54 | O37: NONE | P37: =RANK(B37,(B$32:B$37,B$42:B$47),1) -> 3 | Q37: =RANK(C37,(C$32:C$37,C$42:C$47),1) -> 4 | R37: =RANK(D37,(D$32:D$37,D$42:D$47),1) -> 4 | S37: =RANK(E37,(E$32:E$37,E$42:E$47),1) -> 4 | T37: =RANK(F37,(F$32:F$37,F$42:F$47),1) -> 3 | U37: =RANK(G37,(G$32:G$37,G$42:G$47),1) -> 4 | V37: =RANK(H37,(H$32:H$37,H$42:H$47),1) -> 4 | W37: =RANK(I37,(I$32:I$37,I$42:I$47),1) -> 4 | X37: =RANK(J37,(J$32:J$37,J$42:J$47),1) -> 4
J38: TEAM GROSS | K38: =SUM(K32:K37) -> 459 | M38: =SUM(M32:M37) -> 243
J39: TEAM NET | K39: =SMALL(K32:K37,1)+SMALL(K32:K37,2)+SMALL(K32:K37,3)+SMALL(K32:K37,4) -> 279 | L39: =RANK(K39,($K$39,$K$49),1) -> 2 | M39: =SMALL(M32:M37,1)+SMALL(M32:M37,2)+SMALL(M32:M37,3)+SMALL(M32:M37,4) -> 135
A40: =+A$3&$A$82&$A$83 -> Griswold | B40: JV Girls | O40: =+A40 -> Griswold
B41: 1 | C41: 2 | D41: 3 | E41: 4 | F41: 5 | G41: 6 | H41: 7 | I41: 8 | J41: 9 | K41: TOTAL | L41: PLACE | M41: + / - | P41: 1 | Q41: 2 | R41: 3 | S41: 4 | T41: 5 | U41: 6 | V41: 7 | W41: 8 | X41: 9
K42: =SUM(B42:J42) -> 0 | L42: =RANK(K42,($K$31:$K$37,$K$41:$K$47),1) -> 1 | M42: =+K42-$M$1 -> -36 | O42: =+A42 -> 0 | P42: =RANK(B42,(B$32:B$37,B$42:B$47),1) ->  | Q42: =RANK(C42,(C$32:C$37,C$42:C$47),1) ->  | R42: =RANK(D42,(D$32:D$37,D$42:D$47),1) ->  | S42: =RANK(E42,(E$32:E$37,E$42:E$47),1) ->  | T42: =RANK(F42,(F$32:F$37,F$42:F$47),1) ->  | U42: =RANK(G42,(G$32:G$37,G$42:G$47),1) ->  | V42: =RANK(H42,(H$32:H$37,H$42:H$47),1) ->  | W42: =RANK(I42,(I$32:I$37,I$42:I$47),1) ->  | X42: =RANK(J42,(J$32:J$37,J$42:J$47),1) -> 
K43: 0 | L43: =RANK(K43,($K$31:$K$37,$K$41:$K$47),1) -> 1 | M43: -36 | O43: 0 | P43: =RANK(B43,(B$32:B$37,B$42:B$47),1) ->  | Q43: =RANK(C43,(C$32:C$37,C$42:C$47),1) ->  | R43: =RANK(D43,(D$32:D$37,D$42:D$47),1) ->  | S43: =RANK(E43,(E$32:E$37,E$42:E$47),1) ->  | T43: =RANK(F43,(F$32:F$37,F$42:F$47),1) ->  | U43: =RANK(G43,(G$32:G$37,G$42:G$47),1) ->  | V43: =RANK(H43,(H$32:H$37,H$42:H$47),1) ->  | W43: =RANK(I43,(I$32:I$37,I$42:I$47),1) ->  | X43: =RANK(J43,(J$32:J$37,J$42:J$47),1) -> 
K44: 0 | L44: =RANK(K44,($K$31:$K$37,$K$41:$K$47),1) -> 1 | M44: -36 | O44: 0 | P44: =RANK(B44,(B$32:B$37,B$42:B$47),1) ->  | Q44: =RANK(C44,(C$32:C$37,C$42:C$47),1) ->  | R44: =RANK(D44,(D$32:D$37,D$42:D$47),1) ->  | S44: =RANK(E44,(E$32:E$37,E$42:E$47),1) ->  | T44: =RANK(F44,(F$32:F$37,F$42:F$47),1) ->  | U44: =RANK(G44,(G$32:G$37,G$42:G$47),1) ->  | V44: =RANK(H44,(H$32:H$37,H$42:H$47),1) ->  | W44: =RANK(I44,(I$32:I$37,I$42:I$47),1) ->  | X44: =RANK(J44,(J$32:J$37,J$42:J$47),1) -> 
K45: 0 | L45: =RANK(K45,($K$31:$K$37,$K$41:$K$47),1) -> 1 | M45: -36 | O45: 0 | P45: =RANK(B45,(B$32:B$37,B$42:B$47),1) ->  | Q45: =RANK(C45,(C$32:C$37,C$42:C$47),1) ->  | R45: =RANK(D45,(D$32:D$37,D$42:D$47),1) ->  | S45: =RANK(E45,(E$32:E$37,E$42:E$47),1) ->  | T45: =RANK(F45,(F$32:F$37,F$42:F$47),1) ->  | U45: =RANK(G45,(G$32:G$37,G$42:G$47),1) ->  | V45: =RANK(H45,(H$32:H$37,H$42:H$47),1) ->  | W45: =RANK(I45,(I$32:I$37,I$42:I$47),1) ->  | X45: =RANK(J45,(J$32:J$37,J$42:J$47),1) -> 
K46: 0 | L46: =RANK(K46,($K$31:$K$37,$K$41:$K$47),1) -> 1 | M46: -36 | O46: 0 | P46: =RANK(B46,(B$32:B$37,B$42:B$47),1) ->  | Q46: =RANK(C46,(C$32:C$37,C$42:C$47),1) ->  | R46: =RANK(D46,(D$32:D$37,D$42:D$47),1) ->  | S46: =RANK(E46,(E$32:E$37,E$42:E$47),1) ->  | T46: =RANK(F46,(F$32:F$37,F$42:F$47),1) ->  | U46: =RANK(G46,(G$32:G$37,G$42:G$47),1) ->  | V46: =RANK(H46,(H$32:H$37,H$42:H$47),1) ->  | W46: =RANK(I46,(I$32:I$37,I$42:I$47),1) ->  | X46: =RANK(J46,(J$32:J$37,J$42:J$47),1) -> 
K47: 0 | L47: =RANK(K47,($K$31:$K$37,$K$41:$K$47),1) -> 1 | M47: -36 | O47: 0 | P47: =RANK(B47,(B$32:B$37,B$42:B$47),1) ->  | Q47: =RANK(C47,(C$32:C$37,C$42:C$47),1) ->  | R47: =RANK(D47,(D$32:D$37,D$42:D$47),1) ->  | S47: =RANK(E47,(E$32:E$37,E$42:E$47),1) ->  | T47: =RANK(F47,(F$32:F$37,F$42:F$47),1) ->  | U47: =RANK(G47,(G$32:G$37,G$42:G$47),1) ->  | V47: =RANK(H47,(H$32:H$37,H$42:H$47),1) ->  | W47: =RANK(I47,(I$32:I$37,I$42:I$47),1) ->  | X47: =RANK(J47,(J$32:J$37,J$42:J$47),1) -> 
J48: TEAM GROSS | K48: =SUM(K42:K47) -> 0 | M48: =SUM(M42:M47) -> -216
J49: TEAM NET | K49: =SMALL(K42:K47,1)+SMALL(K42:K47,2)+SMALL(K42:K47,3)+SMALL(K42:K47,4) -> 0 | L49: =RANK(K49,($K$39,$K$49),1) -> 1 | M49: =SMALL(M42:M47,1)+SMALL(M42:M47,2)+SMALL(M42:M47,3)+SMALL(M42:M47,4) -> -144
A53: =+$A$2&$A$81&$A$84 -> Treynor | B53: JV Girls
B54: 1 | C54: 2 | D54: 3 | E54: 4 | F54: 5 | G54: 6 | H54: 7 | I54: 8 | J54: 9 | K54: TOTAL | L54: PLACE | M54: + / -
K55: =SUM(B55:J55) -> 0 | L55: =RANK(K55,($K$55:$K$63,$K$66:$K$74),1) -> 1 | M55: =+K55-$M$1 -> -36
K56: 0 | L56: =RANK(K56,($K$55:$K$63,$K$66:$K$74),1) -> 1 | M56: -36
K57: 0 | L57: =RANK(K57,($K$55:$K$63,$K$66:$K$74),1) -> 1 | M57: -36
K58: 0 | L58: =RANK(K58,($K$55:$K$63,$K$66:$K$74),1) -> 1 | M58: -36
K59: 0 | L59: =RANK(K59,($K$55:$K$63,$K$66:$K$74),1) -> 1 | M59: -36
K60: 0 | L60: =RANK(K60,($K$55:$K$63,$K$66:$K$74),1) -> 1 | M60: -36
J61: TEAM GROSS | K61: =SUM(K55:K60) -> 0 | M61: =SUM(M55:M60) -> -216
J62: TEAM NET | K62: =SMALL(K55:K60,1)+SMALL(K55:K60,2)+SMALL(K55:K60,3)+SMALL(K55:K60,4) -> 0 | L62: =RANK(K62,($K$62,$K$74),1) -> 1 | M62: =SMALL(M55:M60,1)+SMALL(M55:M60,2)+SMALL(M55:M60,3)+SMALL(M55:M60,4) -> -144
A65: =+A$3&$A$81&$A$84 -> Griswold | B65: JV Girls
B66: 1 | C66: 2 | D66: 3 | E66: 4 | F66: 5 | G66: 6 | H66: 7 | I66: 8 | J66: 9 | K66: TOTAL | L66: PLACE | M66: + / -
K67: =SUM(B67:J67) -> 0 | L67: =RANK(K67,($K$55:$K$63,$K$66:$K$74),1) -> 1 | M67: =+K67-$M$1 -> -36
K68: 0 | L68: =RANK(K68,($K$55:$K$63,$K$66:$K$74),1) -> 1 | M68: -36
K69: 0 | L69: =RANK(K69,($K$55:$K$63,$K$66:$K$74),1) -> 1 | M69: -36
K70: 0 | L70: =RANK(K70,($K$55:$K$63,$K$66:$K$74),1) -> 1 | M70: -36
K71: 0 | L71: =RANK(K71,($K$55:$K$63,$K$66:$K$74),1) -> 1 | M71: -36
K72: 0 | L72: =RANK(K72,($K$55:$K$63,$K$66:$K$74),1) -> 1 | M72: -36
J73: TEAM GROSS | K73: =SUM(K67:K72) -> 0 | M73: =SUM(M67:M72) -> -216
J74: TEAM NET | K74: =SMALL(K67:K72,1)+SMALL(K67:K72,2)+SMALL(K67:K72,3)+SMALL(K67:K72,4) -> 0 | L74: =RANK(K74,($K$62,$K$74),1) -> 1 | M74: =SMALL(M67:M72,1)+SMALL(M67:M72,2)+SMALL(M67:M72,3)+SMALL(M67:M72,4) -> -144
A76: =+$A$2&$A$81&$A$84 -> Treynor | B76: JV Boys
B77: 1 | C77: 2 | D77: 3 | E77: 4 | F77: 5 | G77: 6 | H77: 7 | I77: 8 | J77: 9 | K77: TOTAL | L77: PLACE | M77: + / -
K78: =SUM(B78:J78) -> 0 | L78: =RANK(K78,($K$99:$K$106,$K$88:$K$94),1) -> 1 | M78: =+K78-$M$1 -> -36
K79: 0 | L79: =RANK(K79,($K$99:$K$106,$K$88:$K$94),1) -> 1 | M79: -36
K80: 0 | L80: =RANK(K80,($K$99:$K$106,$K$88:$K$94),1) -> 1 | M80: -36
K81: 0 | L81: =RANK(K81,($K$99:$K$106,$K$88:$K$94),1) -> 1 | M81: -36
K82: 0 | L82: =RANK(K82,($K$99:$K$106,$K$88:$K$94),1) -> 1 | M82: -36
K83: 0 | L83: =RANK(K83,($K$99:$K$106,$K$88:$K$94),1) -> 1 | M83: -36
J84: TEAM GROSS | K84: =SUM(K78:K83) -> 0 | M84: =SUM(M78:M83) -> -216
J85: TEAM NET | K85: =SMALL(K78:K83,1)+SMALL(K78:K83,2)+SMALL(K78:K83,3)+SMALL(K78:K83,4) -> 0 | L85: =RANK(K85,($K$62,$K$74),1) -> 1 | M85: =SMALL(M78:M83,1)+SMALL(M78:M83,2)+SMALL(M78:M83,3)+SMALL(M78:M83,4) -> -144
A87: =+A$3&$A$81&$A$84 -> Griswold | B87: JV Boys
B88: 1 | C88: 2 | D88: 3 | E88: 4 | F88: 5 | G88: 6 | H88: 7 | I88: 8 | J88: 9 | K88: TOTAL | L88: PLACE | M88: + / -
K89: =SUM(B89:J89) -> 0 | L89: =RANK(K89,($K$99:$K$106,$K$88:$K$94),1) -> 1 | M89: =+K89-$M$1 -> -36
K90: 0 | L90: =RANK(K90,($K$99:$K$106,$K$88:$K$94),1) -> 1 | M90: -36
K91: 0 | L91: =RANK(K91,($K$99:$K$106,$K$88:$K$94),1) -> 1 | M91: -36
K92: 0 | L92: =RANK(K92,($K$99:$K$106,$K$88:$K$94),1) -> 1 | M92: -36
K93: 0 | L93: =RANK(K93,($K$99:$K$106,$K$88:$K$94),1) -> 1 | M93: -36
K94: 0 | L94: =RANK(K94,($K$99:$K$106,$K$88:$K$94),1) -> 1 | M94: -36
J95: TEAM GROSS | K95: =SUM(K89:K94) -> 0 | M95: =SUM(M89:M94) -> -216
J96: TEAM NET | K96: =SMALL(K89:K94,1)+SMALL(K89:K94,2)+SMALL(K89:K94,3)+SMALL(K89:K94,4) -> 0 | L96: =RANK(K96,($K$62,$K$74),1) -> 1 | M96: =SMALL(M89:M94,1)+SMALL(M89:M94,2)+SMALL(M89:M94,3)+SMALL(M89:M94,4) -> -144
A98: Extra
K99: =SUM(B99:J99) -> 0 | L99: =RANK(K99,($K$99:$K$106,$K$88:$K$94),1) -> 1 | M99: =+K99-$M$1 -> -36
L100: =RANK(K100,($K$99:$K$106,$K$88:$K$94),1) -> 1 | M100: -36
L101: =RANK(K101,($K$99:$K$106,$K$88:$K$94),1) -> 1 | M101: -36
L102: =RANK(K102,($K$99:$K$106,$K$88:$K$94),1) -> 1 | M102: =+K102-$M$1 -> -36
L103: =RANK(K103,($K$99:$K$106,$K$88:$K$94),1) -> 1 | M103: =+K103-$M$1 -> -36
K104: =SUM(B104:J104) -> 0 | L104: =RANK(K104,($K$99:$K$106,$K$88:$K$94),1) -> 1 | M104: =+K104-$M$1 -> -36
K105: =SUM(B105:J105) -> 0 | L105: =RANK(K105,($K$99:$K$106,$K$88:$K$94),1) -> 1 | M105: -36
K106: =SUM(B106:J106) -> 0 | L106: =RANK(K106,($K$99:$K$106,$K$88:$K$94),1) -> 1 | M106: -36
